bitfinex/quotes_BTCUSD_20250825
["timestamp","ask_amount","ask_price","bid_price","bid_amount"]
[1756097725566,4.804e-05,112940.0,112930.0,1.48795318]
[1756097725754,4.804e-05,112940.0,112930.0,1.82995318]
[1756097725960,4.804e-05,112940.0,112930.0,1.83095318]
[1756097726379,4.804e-05,112940.0,112930.0,1.82895318]
[1756097726592,4.804e-05,112940.0,112930.0,1.84971318]
[1756097727011,4.804e-05,112940.0,112930.0,1.87632518]
[1756097727700,4.804e-05,112940.0,112930.0,1.87532518]
[1756097727916,4.804e-05,112940.0,112930.0,1.87732518]
[1756097728386,4.804e-05,112940.0,112930.0,1.87532518]
[1756097728585,4.804e-05,112940.0,112930.0,1.87832518]
[1756097731168,4.804e-05,112940.0,112930.0,1.91839621]
[1756097731607,4.804e-05,112940.0,112930.0,1.90063621]
[1756097737913,4.804e-05,112940.0,112930.0,0.92073928]
[1756097738085,4.804e-05,112940.0,112930.0,1.90063621]
[1756097739339,4.804e-05,112940.0,112930.0,0.92073928]
[1756097739549,1.1569199,112980.0,112960.0,0.17705382]
[1756097739750,0.1775039,112980.0,112970.0,0.1502]
[1756097740200,0.18655584,112980.0,112970.0,0.15016]
[1756097740747,1.16645277,112980.0,112970.0,0.15016]
[1756097741503,1.16845277,112980.0,112970.0,0.15016]
[1756097741732,1.16645277,112980.0,112970.0,0.14976]
[1756097741948,1.16845277,112980.0,112970.0,0.14976]
[1756097742183,0.17703815,112970.0,112950.0,0.06808]
[1756097742429,0.97989693,112960.0,112950.0,0.15496475]
[1756097742695,1.15695075,112960.0,112950.0,0.15496475]
[1756097742936,0.97989693,112960.0,112950.0,0.30512475]
[1756097743883,0.22502296,112980.0,112950.0,0.48219359]
[1756097744113,1.3590458,112980.0,112960.0,0.18007317]
[1756097744339,0.37814887,112980.0,112970.0,0.1506]
[1756097744565,0.00953287,112980.0,112970.0,0.1506]
[1756097744800,0.9894298,112980.0,112970.0,0.1506]
[1756097745248,0.9894298,112980.0,112970.0,0.15362]
[1756097745465,0.00953287,112980.0,112970.0,0.33065815]
[1756097745690,0.00048093,112980.0,112970.0,0.4197129]
[1756097746117,0.00248093,112980.0,112970.0,0.4197129]
[1756097746487,0.00348093,112980.0,112970.0,0.4197129]
[1756097747046,0.00248093,112980.0,112970.0,0.4197129]
[1756097747261,0.00048093,112980.0,112970.0,0.4197129]
[1756097747452,0.00148093,112980.0,112970.0,0.4197129]
[1756097748161,0.00148093,112980.0,112970.0,0.4175429]
[1756097748600,0.00148093,112980.0,112970.0,0.4207129]
[1756097748802,0.00048093,112980.0,112970.0,0.4207129]
[1756097749124,0.00048093,112980.0,112970.0,0.4217129]
[1756097749752,0.00048093,112980.0,112970.0,0.4227129]
[1756097750419,0.00048093,112980.0,112970.0,0.44016192]
[1756097750640,0.00048093,112980.0,112970.0,1.42005885]
[1756097750852,0.00048093,112980.0,112970.0,0.44016192]
[1756097751055,0.00048093,112980.0,112970.0,1.42005885]
[1756097751255,0.00048093,112980.0,112970.0,1.44666485]
[1756097751537,0.00048093,112980.0,112970.0,1.78666485]
[1756097752100,0.00048093,112980.0,112970.0,1.78566485]
[1756097752263,0.00048093,112980.0,112970.0,1.78866485]
[1756097752475,0.00048093,112980.0,112970.0,0.80876792]
[1756097752676,0.00048093,112980.0,112970.0,1.78866485]
[1756097753208,0.00048093,112980.0,112970.0,1.78566485]
[1756097753413,0.00048093,112980.0,112970.0,1.78966485]
[1756097753619,0.00048093,112980.0,112970.0,1.78866485]
[1756097754160,0.00048093,112980.0,112970.0,1.79166485]
[1756097754337,0.00048093,112980.0,112970.0,1.78866485]
[1756097754539,0.00048093,112980.0,112970.0,1.83077261]
[1756097755172,0.00048093,112980.0,112970.0,0.85087568]
[1756097755354,0.00048093,112980.0,112970.0,1.83077261]
[1756097757356,0.00048093,112980.0,112970.0,0.85087568]
[1756097757551,1.15705898,113020.0,112990.0,0.19445583]
[1756097757754,1.15710707,113020.0,113000.0,0.15124]
[1756097759378,0.97989693,113010.0,113000.0,0.15124]
[1756097759809,0.97989693,113010.0,113000.0,0.15116]
[1756097760450,1.15710707,113020.0,113000.0,0.15116]
[1756097760645,0.00893972,113010.0,112990.0,0.35244058]
[1756097760861,0.97989693,113010.0,113000.0,0.15112]
[1756097761737,0.97989693,113010.0,113000.0,0.15212]
[1756097761957,0.98014502,113020.0,113000.0,0.42118369]
[1756097762164,0.98014502,113020.0,113000.0,0.25645377]
[1756097762165,1.15710588,113020.0,113000.0,0.25645377]
[1756097762396,0.97989693,113010.0,113000.0,0.001]
[1756097762612,0.97989693,113010.0,113000.0,0.1522]
[1756097762809,0.97989693,113010.0,113000.0,0.1512]
[1756097763065,0.00024809,113020.0,113000.0,0.32818988]
[1756097763279,0.98014502,113020.0,113000.0,0.32818988]
[1756097764343,1.15710514,113020.0,113000.0,0.1512]
[1756097764545,1.15710514,113020.0,113000.0,0.15341238]
[1756097764546,1.15810514,113020.0,113000.0,0.15341238]
[1756097764912,0.17820821,113020.0,113010.0,0.1512]
[1756097765114,1.16732197,113020.0,113010.0,0.15116]
[1756097766132,0.17697613,113010.0,112990.0,0.06808]
[1756097766353,1.15688808,113000.0,112990.0,0.15496475]
[1756097766581,0.97989693,113000.0,112990.0,0.30612475]
[1756097767501,0.17697613,113010.0,112990.0,0.30612475]
[1756097767696,0.97989693,113000.0,112990.0,0.30712475]
[1756097767872,0.97989693,113000.0,112990.0,0.30612475]
[1756097768257,1.15687382,113010.0,112990.0,0.30612475]
[1756097768851,0.17697689,113010.0,112990.0,0.30612475]
[1756097769095,1.15687382,113010.0,112990.0,0.15898475]
[1756097769300,0.97989693,113010.0,113000.0,0.15112]
[1756097769725,1.15687241,113010.0,113000.0,0.15112]
[1756097769925,1.15787241,113010.0,113000.0,0.15112]
[1756097770137,0.98089693,113010.0,113000.0,0.15112]
[1756097770856,0.97989693,113010.0,113000.0,0.15112]
[1756097770979,0.97989693,113010.0,113000.0,0.15108]
[1756097770980,1.15787295,113010.0,113000.0,0.15108]
[1756097771625,0.17699115,113000.0,112990.0,0.15496475]
[1756097771834,1.15688808,113000.0,112990.0,0.30600475]
[1756097772052,1.15688808,113000.0,112990.0,0.15496475]
[1756097772218,1.15688808,113000.0,112990.0,0.21916]
[1756097772621,0.17700681,112990.0,112980.0,0.00051907]
[1756097772933,1.15690374,112990.0,112980.0,0.23848382]
[1756097773544,1.15690374,112990.0,112980.0,0.24158382]
[1756097773545,0.17700681,112990.0,112980.0,0.24158382]
[1756097773760,1.15690374,112990.0,112980.0,0.23848382]
[1756097773956,0.97989693,112990.0,112980.0,0.23948382]
[1756097774150,0.97989693,112990.0,112980.0,0.24158382]
[1756097774730,0.97989693,112990.0,112980.0,0.24358382]
[1756097774982,0.17699115,113000.0,112980.0,0.24358382]
[1756097775184,0.97989693,112990.0,112980.0,0.24574382]
[1756097775391,0.97989693,113000.0,112980.0,0.24374382]
[1756097775546,0.97989693,113000.0,112990.0,0.0031]
[1756097775766,0.21243279,113010.0,112990.0,0.00526]
[1756097775978,1.15688927,113000.0,112980.0,0.09150382]
[1756097776172,1.15788927,113000.0,112990.0,0.15108]
[1756097776374,0.17799234,113000.0,112990.0,0.15108]
[1756097776583,1.15688927,113000.0,112990.0,0.15108]
[1756097776787,1.15788927,113000.0,112990.0,0.15108]
[1756097781854,0.17799234,113000.0,112990.0,0.15634]
[1756097782055,1.15788927,113000.0,112990.0,0.15418]
[1756097785009,0.17799234,113000.0,112990.0,0.15418]
[1756097785228,1.15788927,113000.0,112990.0,0.15418]
[1756097785449,0.17799234,113000.0,112990.0,0.15418]
[1756097785638,1.15788927,113000.0,112990.0,0.15418]
[1756097786088,1.15788927,113000.0,112990.0,0.15108]
[1756097786566,1.15788927,113000.0,112990.0,0.24543733]
[1756097786567,0.001,113000.0,112990.0,0.24543733]
[1756097786793,0.001,113000.0,112990.0,0.24322475]
[1756097787025,0.001,113000.0,112990.0,0.42023156]
[1756097788157,1.33374791,113010.0,112990.0,0.42023156]
[1756097788452,1.33274791,113010.0,113000.0,0.0031]
[1756097788646,1.33274791,113010.0,113000.0,0.00526]
[1756097788647,1.31989693,113010.0,113000.0,0.00526]
[1756097788881,0.00946492,113020.0,113000.0,0.26913487]
[1756097789109,0.00946492,113020.0,113010.0,0.15647219]
[1756097789332,0.00946492,113020.0,113010.0,0.15863219]
[1756097790236,0.01046492,113020.0,113010.0,0.15863219]
[1756097791389,0.00946492,113020.0,113010.0,0.15863219]
[1756097791840,0.99036185,113020.0,113010.0,0.15863219]
[1756097792096,1.16732168,113020.0,113010.0,0.15422]
[1756097792580,0.18742475,113020.0,113010.0,0.15422]
[1756097792829,1.16732168,113020.0,113010.0,0.15422]
[1756097793283,1.16732168,113020.0,113010.0,0.15638]
[1756097794406,1.16732168,113020.0,113010.0,0.15422]
[1756097795117,1.16732168,113020.0,113010.0,0.15638]
[1756097795339,1.16732168,113020.0,113010.0,0.15426]
[1756097795592,0.18742475,113020.0,113010.0,0.15642]
[1756097795835,1.16732168,113020.0,113010.0,0.15642]
[1756097796532,1.16732168,113020.0,113010.0,0.01776]
[1756097796759,1.16732168,113020.0,113010.0,0.15132]
[1756097798005,1.16732168,113020.0,113010.0,0.15658]
[1756097799191,1.16732168,113020.0,113010.0,0.15442]
[1756097799826,1.16732168,113020.0,113010.0,0.15132]
[1756097799978,1.16732168,113020.0,113010.0,0.15441]
[1756097800380,1.16732168,113020.0,113010.0,0.00309]
[1756097800605,1.16732168,113020.0,113010.0,0.15461]
[1756097800815,0.18742475,113020.0,113010.0,0.15665]
[1756097800977,1.16732168,113020.0,113010.0,0.15665]
[1756097801219,1.16732168,113020.0,113010.0,0.15152]
[1756097801584,1.16732168,113020.0,113010.0,0.15461]
[1756097801992,0.17697548,113010.0,113000.0,0.07117]
[1756097802128,1.15687241,113010.0,113000.0,0.22285]
[1756097802328,0.33910475,113020.0,113000.0,0.22489]
[1756097802540,0.97989693,113010.0,113000.0,0.22489]
[1756097803815,0.97989693,113010.0,113000.0,0.22589]
[1756097803972,0.97989693,113010.0,113000.0,0.22609]
[1756097804177,0.18742475,113020.0,113000.0,0.22609]
[1756097804439,0.18642475,113020.0,113000.0,0.223]
[1756097804564,0.97989693,113010.0,113000.0,0.22609]
[1756097805244,0.97989693,113010.0,113000.0,0.22509]
[1756097805419,0.18742475,113020.0,113000.0,0.22509]
[1756097805600,0.97989693,113010.0,113000.0,0.22509]
[1756097806486,0.97989693,113010.0,113000.0,0.22609]
[1756097807303,0.00946492,113020.0,113000.0,0.48996572]
[1756097807520,0.98936185,113020.0,113010.0,0.00530219]
[1756097807729,0.00946492,113020.0,113010.0,0.00734219]
[1756097807934,0.00946492,113020.0,113010.0,0.18431767]
[1756097808122,0.00946492,113020.0,113010.0,0.18210548]
[1756097808550,0.98936185,113020.0,113010.0,0.18210548]
[1756097808768,0.98936185,113020.0,113010.0,0.00513]
[1756097808972,0.01046492,113020.0,113010.0,0.00734219]
[1756097809191,0.99036185,113020.0,113010.0,0.00734219]
[1756097809826,0.01046492,113020.0,113010.0,0.00734219]
[1756097810192,0.99036185,113020.0,113010.0,0.00734219]
[1756097811573,0.01046492,113020.0,113010.0,0.18431767]
[1756097811754,0.99036185,113020.0,113010.0,0.18210548]
[1756097812337,0.01046492,113020.0,113010.0,0.26899023]
[1756097813727,0.01046492,113020.0,113010.0,0.09201475]
[1756097814129,1.16732168,113020.0,113010.0,0.08997475]
[1756097814336,0.99036185,113020.0,113010.0,0.24169475]
[1756097814558,0.01046492,113020.0,113010.0,0.24373475]
[1756097814763,0.99036185,113020.0,113010.0,0.24373475]
[1756097814964,1.16732168,113020.0,113010.0,0.24169475]
[1756097816255,0.99036185,113020.0,113010.0,0.24169475]
[1756097816466,0.99036185,113020.0,113010.0,0.24373475]
[1756097817992,0.01046492,113020.0,113010.0,0.24373475]
[1756097818194,0.99036185,113020.0,113010.0,0.24373475]
[1756097818804,0.75306954,113020.0,113010.0,0.24373475]
[1756097819538,0.20354648,113030.0,113010.0,0.24373475]
[1756097819743,0.97989693,113020.0,113010.0,0.24373475]
[1756097820331,1.15685676,113020.0,113010.0,0.24165475]
[1756097820555,0.97989693,113020.0,113010.0,0.24165475]
[1756097820749,0.97989693,113020.0,113010.0,0.24369475]
[1756097821299,0.99598105,113020.0,113010.0,0.24369475]
[1756097822331,1.17294088,113020.0,113010.0,0.24357475]
[1756097822951,1.17294088,113020.0,113010.0,0.24153475]
[1756097823182,0.17697548,113010.0,113000.0,0.07117]
[1756097823386,0.97989693,113010.0,113000.0,0.30962284]
[1756097823712,1.15687241,113010.0,113000.0,0.15810284]
[1756097823923,1.15687241,113010.0,113000.0,0.21968809]
[1756097824351,1.18347841,113010.0,113000.0,0.22068809]
[1756097824551,1.18347841,113010.0,113000.0,0.22168809]
[1756097824980,1.18347841,113010.0,113000.0,0.00204809]
[1756097825321,2.50337534,113010.0,113000.0,0.00204809]
[1756097825731,1.52347841,113010.0,113000.0,0.00204809]
[1756097826997,1.52347841,113010.0,113000.0,0.00104809]
[1756097827226,1.52347841,113010.0,113000.0,4.809e-05]
[1756097827621,1.52447841,113010.0,113000.0,4.809e-05]
[1756097827825,1.52347841,113010.0,113000.0,4.809e-05]
[1756097827972,1.52647841,113010.0,113000.0,4.809e-05]
[1756097830607,1.67783841,113010.0,113000.0,4.809e-05]
[1756097831947,1.52647841,113010.0,113000.0,4.809e-05]
[1756097832181,1.67779841,113010.0,113000.0,4.809e-05]
[1756097832787,1.76468316,113010.0,113000.0,4.809e-05]
[1756097832993,2.74458009,113010.0,113000.0,4.809e-05]
[1756097834213,2.74358009,113010.0,113000.0,4.809e-05]
[1756097834417,2.74158009,113010.0,113000.0,4.809e-05]
[1756097834562,2.75743266,113010.0,113000.0,4.809e-05]
[1756097834763,2.76043266,113010.0,113000.0,4.809e-05]
[1756097837018,2.60911266,113010.0,113000.0,4.809e-05]
[1756097837199,0.8005588,113010.0,113000.0,4.809e-05]
[1756097837397,2.76035266,113010.0,113000.0,4.809e-05]
[1756097837599,2.60911266,113010.0,113000.0,4.809e-05]
[1756097837893,3.20871266,113010.0,113000.0,4.809e-05]
[1756097839003,3.20887266,113010.0,113000.0,4.809e-05]
[1756097843179,3.05751266,113010.0,113000.0,4.809e-05]
[1756097843431,3.20871266,113010.0,113000.0,4.809e-05]
[1756097844078,3.05751266,113010.0,113000.0,4.809e-05]
[1756097844267,3.20871266,113010.0,113000.0,4.809e-05]
[1756097846808,3.24773881,113010.0,113000.0,4.809e-05]
[1756097847352,3.23388624,113010.0,113000.0,4.809e-05]
[1756097848166,3.23380624,113010.0,113000.0,4.809e-05]
[1756097849162,3.242051,113010.0,113000.0,4.809e-05]
[1756097850606,3.25590304,113010.0,113000.0,4.809e-05]
[1756097851011,3.162051,113010.0,113000.0,4.809e-05]
[1756097854374,3.17590334,113010.0,113000.0,4.809e-05]
[1756097857584,2.97469264,113010.0,113000.0,4.809e-05]
[1756097857791,3.15521612,113010.0,113000.0,4.809e-05]
[1756097858644,3.15524331,113010.0,113000.0,4.809e-05]
[1756097860217,3.16145024,113010.0,113000.0,4.809e-05]
[1756097860624,1.20149638,113010.0,113000.0,0.00520809]
[1756097860842,1.19528945,113010.0,113000.0,0.00520809]
[1756097861047,3.15508331,113010.0,113000.0,0.00520809]
[1756097861252,3.16129258,113010.0,113000.0,0.00520809]
[1756097861735,3.16129258,113010.0,113000.0,4.809e-05]
[1756097862159,3.18037914,113010.0,113000.0,4.809e-05]
[1756097866406,3.24845914,113010.0,113000.0,4.809e-05]
[1756097868378,3.23397792,113010.0,113000.0,4.809e-05]
[1756097868576,3.25676844,113010.0,113000.0,4.809e-05]
[1756097869621,3.25676845,113010.0,113000.0,4.809e-05]
[1756097870656,3.25676845,113010.0,113000.0,0.00316809]
[1756097871455,3.25676845,113010.0,113000.0,4.809e-05]
[1756097872251,3.25700845,113010.0,113000.0,4.809e-05]
[1756097873634,8.0567829,113010.0,113000.0,4.809e-05]
[1756097873813,8.06506939,113010.0,113000.0,4.809e-05]
[1756097874623,8.06006939,113010.0,113000.0,4.809e-05]
[1756097874950,8.06906939,113010.0,113000.0,4.809e-05]
[1756097877332,0.51699115,113000.0,112980.0,0.0716207]
[1756097877543,1.39482849,112990.0,112980.0,0.0747407]
[1756097877745,1.39482849,112990.0,112980.0,0.0736607]
[1756097877923,1.42144549,112990.0,112980.0,0.0736607]
[1756097878121,1.43529849,112990.0,112980.0,0.0736607]
[1756097878328,1.43529849,112990.0,112980.0,0.0767807]
[1756097879613,1.77529849,112990.0,112980.0,0.00567907]
[1756097879752,1.80086809,112990.0,112980.0,0.00363907]
[1756097880141,1.80086809,112990.0,112980.0,0.00051907]
[1756097880385,1.80186809,112990.0,112980.0,0.00051907]
[1756097880557,1.78801509,112990.0,112980.0,0.00051907]
[1756097880760,1.78901509,112990.0,112980.0,0.00051907]
[1756097882368,1.78901509,112990.0,112980.0,0.00363907]
[1756097882590,1.78901509,112990.0,112980.0,1e-08]
[1756097882806,0.17703815,112970.0,112960.0,0.07110163]
[1756097883007,1.30777508,112970.0,112960.0,0.07314163]
[1756097883246,1.64777508,112970.0,112960.0,0.07314163]
[1756097883651,1.67439408,112970.0,112960.0,0.07314163]
[1756097884071,1.67447904,112970.0,112960.0,0.07414163]
[1756097884286,1.67447904,112970.0,112960.0,0.07614163]
[1756097884735,1.67447904,112970.0,112960.0,0.07926163]
[1756097884967,1.67443904,112970.0,112960.0,0.07926163]
[1756097885169,1.67443904,112970.0,112960.0,0.07726163]
[1756097885753,1.67439904,112970.0,112960.0,0.07726163]
[1756097885973,1.67439904,112970.0,112960.0,0.00616]
[1756097886147,1.68825454,112970.0,112960.0,0.00516]
[1756097887143,1.72800433,112970.0,112960.0,0.00516]
[1756097888180,1.68825454,112970.0,112960.0,0.00516]
[1756097895456,1.81131417,112970.0,112960.0,0.00516]
[1756097896881,1.85132715,112970.0,112960.0,0.00516]
[1756097898273,0.74837059,112970.0,112960.0,0.00516]
[1756097898484,1.85120715,112970.0,112960.0,0.00516]
[1756097898901,0.25761059,112970.0,112960.0,0.00516]
[1756097899107,8.496e-05,112970.0,112960.0,0.07626163]
[1756097899337,8.496e-05,112970.0,112960.0,0.0784748]
[1756097899667,1.10304152,112970.0,112960.0,0.0784748]
[1756097901557,8.496e-05,112970.0,112960.0,0.0784748]
[1756097902913,8.496e-05,112970.0,112960.0,0.0804748]
[1756097903326,8.496e-05,112970.0,112960.0,0.0794748]
[1756097903531,8.496e-05,112970.0,112960.0,0.0824748]
[1756097903952,8.496e-05,112970.0,112960.0,0.0814748]
[1756097904165,8.496e-05,112970.0,112960.0,0.0834748]
[1756097904576,8.496e-05,112970.0,112960.0,0.17035955]
[1756097904804,8.496e-05,112970.0,112960.0,0.34741337]
[1756097905026,8.496e-05,112970.0,112960.0,0.3452002]
[1756097906674,8.496e-05,112970.0,112960.0,0.16814638]
[1756097906914,8.496e-05,112970.0,112960.0,0.17035955]
[1756097908185,8.496e-05,112970.0,112960.0,0.27631174]
[1756097908414,8.496e-05,112970.0,112960.0,0.27409857]
[1756097910388,8.496e-05,112970.0,112960.0,0.09704475]
[1756097910615,8.496e-05,112970.0,112960.0,0.09925792]
[1756097910839,8.496e-05,112970.0,112960.0,1.07920852]
[1756097911068,8.496e-05,112970.0,112960.0,1.07699535]
[1756097911982,8.496e-05,112970.0,112960.0,1.25404917]
[1756097912203,8.496e-05,112970.0,112960.0,0.27409857]
[1756097912403,8.496e-05,112970.0,112960.0,1.25404917]
[1756097913082,8.496e-05,112970.0,112960.0,0.09704475]
[1756097913307,8.496e-05,112970.0,112960.0,0.24989792]
[1756097913534,8.496e-05,112970.0,112960.0,0.24768475]
[1756097913774,8.496e-05,112970.0,112960.0,1.22763535]
[1756097914433,8.496e-05,112970.0,112960.0,0.24768475]
[1756097916553,8.496e-05,112970.0,112960.0,1.42213819]
[1756097917819,8.496e-05,112970.0,112960.0,1.42233819]
[1756097919211,8.496e-05,112970.0,112960.0,1.83041819]
[1756097919623,8.496e-05,112970.0,112960.0,1.83029819]
[1756097920045,8.496e-05,112970.0,112960.0,1.82829819]
[1756097920454,8.496e-05,112970.0,112960.0,1.82729819]
[1756097920867,8.496e-05,112970.0,112960.0,1.83029819]
[1756097921275,8.496e-05,112970.0,112960.0,1.83329819]
[1756097922839,8.496e-05,112970.0,112960.0,1.83321819]
[1756097923453,8.496e-05,112970.0,112960.0,1.95542298]
[1756097924607,8.496e-05,112970.0,112960.0,0.70262759]
[1756097924812,8.496e-05,112970.0,112960.0,1.95542298]
[1756097927817,8.496e-05,112970.0,112960.0,1.80478298]
[1756097928021,8.496e-05,112970.0,112960.0,1.95550298]
[1756097928827,8.496e-05,112970.0,112960.0,1.98211298]
[1756097936423,8.496e-05,112970.0,112960.0,0.87995759]
[1756097936626,8.496e-05,112970.0,112960.0,1.98211298]
[1756097937449,8.496e-05,112970.0,112960.0,0.87995759]
[1756097937935,8.496e-05,112970.0,112960.0,1.98211298]
[1756097942097,8.496e-05,112970.0,112960.0,1.83139298]
[1756097942309,8.496e-05,112970.0,112960.0,1.98227298]
[1756097943493,8.496e-05,112970.0,112960.0,0.88011759]
[1756097943723,8.496e-05,112970.0,112960.0,1.98227298]
[1756097945577,8.496e-05,112970.0,112960.0,0.72923759]
[1756097945695,8.496e-05,112970.0,112960.0,1.83139298]
[1756097945903,8.496e-05,112970.0,112960.0,1.98215298]
[1756097946516,8.496e-05,112970.0,112960.0,1.99991298]
[1756097946717,8.496e-05,112970.0,112960.0,1.98215298]
[1756097947864,1.10422035,112970.0,112960.0,0.54906377]
[1756097948065,1.10733035,112970.0,112960.0,0.69778377]
[1756097948444,1.10733035,112970.0,112960.0,0.87483759]
[1756097948672,1.10422035,112970.0,112960.0,0.84833759]
[1756097948874,0.00206496,112970.0,112960.0,0.84833759]
[1756097949085,0.00206496,112970.0,112960.0,0.84428759]
[1756097949511,0.00206496,112970.0,112960.0,0.84322759]
[1756097949933,0.00206496,112970.0,112960.0,0.84522759]
[1756097953239,1.10422035,112970.0,112960.0,0.32817377]
[1756097953484,1.10422035,112970.0,112960.0,0.50522759]
[1756097953641,0.00206496,112970.0,112960.0,0.50522759]
[1756097954682,0.00206496,112970.0,112960.0,0.51041759]
[1756097957614,0.00206496,112970.0,112960.0,0.33336377]
[1756097957812,1.08848465,112980.0,112960.0,0.33336377]
[1756097958041,1.08848465,112980.0,112970.0,0.1506]
[1756097959614,1.08848465,112980.0,112970.0,0.1526]
[1756097959821,1.08848465,112980.0,112970.0,0.003]
[1756097960033,1.08848465,112980.0,112970.0,0.1536]
[1756097962303,0.36306835,112990.0,112970.0,0.15672]
[1756097962507,1.10215539,112980.0,112970.0,0.15672]
[1756097963176,1.27917787,112980.0,112970.0,0.15672]
[1756097963381,1.27917787,112980.0,112970.0,0.15572]
[1756097965247,1.27917787,112980.0,112970.0,0.15672]
[1756097966313,1.10215539,112980.0,112970.0,0.15672]
[1756097966860,1.27917787,112980.0,112970.0,0.15672]
[1756097967063,0.17702248,112980.0,112970.0,0.15879]
[1756097967268,1.27917787,112980.0,112970.0,0.15879]
[1756097967754,1.27917787,112980.0,112970.0,0.15672]
[1756097967922,0.17702248,112980.0,112970.0,0.15672]
[1756097968150,1.27917787,112980.0,112970.0,0.15672]
[1756097969422,1.27917787,112980.0,112970.0,0.00612]
[1756097969600,1.27917787,112980.0,112970.0,0.15672]
[1756097970913,0.17702248,112980.0,112970.0,0.15672]
[1756097971118,1.27917787,112980.0,112970.0,0.15879]
[1756097972703,1.27917787,112980.0,112970.0,0.00819]
[1756097972958,1.27917787,112980.0,112970.0,0.15879]
[1756097978072,1.27917787,112980.0,112970.0,0.15672]
[1756097978934,2.38133326,112980.0,112970.0,0.1536]
[1756097979134,1.27917787,112980.0,112970.0,0.1536]
[1756097980595,1.27917787,112980.0,112970.0,0.15672]
[1756097981253,1.27917787,112980.0,112970.0,0.15874]
[1756097984945,1.27917787,112980.0,112970.0,0.15672]
[1756097990588,1.27917787,112980.0,112970.0,0.15874]
[1756097991212,1.27917787,112980.0,112970.0,0.15672]
[1756097991524,1.27917787,112980.0,112970.0,0.15874]
[1756097991713,0.17702248,112980.0,112970.0,0.15874]
[1756097991930,1.27917787,112980.0,112970.0,0.15874]
[1756097992894,1.07773423,112980.0,112970.0,0.15874]
[1756097993766,1.25475671,112980.0,112970.0,0.15874]
[1756097997497,1.28136971,112980.0,112970.0,0.15874]
[1756097998476,0.20363548,112980.0,112970.0,0.15874]
[1756097998696,1.30579087,112980.0,112970.0,0.15874]
[1756097999153,0.20363548,112980.0,112970.0,0.15874]
[1756097999353,1.30579087,112980.0,112970.0,0.15874]
[1756097999555,0.20363548,112980.0,112970.0,0.15874]
[1756097999894,1.30579087,112980.0,112970.0,0.15874]
[1756098000297,0.026613,112980.0,112970.0,0.15874]
[1756098000503,0.026613,112980.0,112970.0,1.44014651]
[1756098000705,1.43859609,113000.0,112970.0,1.52481829]
[1756098000944,0.026611,112990.0,112980.0,0.00312]
[1756098001127,0.026611,112990.0,112980.0,0.00533278]
[1756098001325,0.20361781,112990.0,112980.0,0.00514]
[1756098001539,0.17700681,112990.0,112980.0,0.00514]
[1756098001756,1.2791622,112990.0,112980.0,0.00514]
[1756098002369,1.2791622,112990.0,112980.0,0.00614]
[1756098002589,0.2124507,113000.0,112980.0,0.00614]
[1756098002801,1.45635669,113000.0,112980.0,0.00302]
[1756098003015,1.45635669,113000.0,112990.0,0.00312]
[1756098003225,1.30575654,113000.0,112990.0,0.15574]
[1756098004824,1.30675654,113000.0,112990.0,0.15574]
[1756098005037,1.30575654,113000.0,112990.0,0.15372]
[1756098005211,1.30575654,113000.0,112990.0,0.00514]
[1756098005419,1.30675654,113000.0,112990.0,0.00514]
[1756098005966,1.30675654,113000.0,112990.0,0.00312]
[1756098006570,0.20460115,113000.0,112990.0,0.00312]
[1756098006842,1.30675654,113000.0,112990.0,0.00312]
[1756098009047,1.45735654,113000.0,112990.0,0.00312]
[1756098012552,1.45720339,113000.0,112990.0,0.00312]
[1756098013811,1.4570194,113000.0,112990.0,0.00312]
[1756098014193,1.45686625,113000.0,112990.0,0.00312]
[1756098014694,1.4566103,113000.0,112990.0,0.00312]
[1756098015258,1.45609737,113000.0,112990.0,0.00312]
[1756098017939,1.45507047,113000.0,112990.0,0.00312]
[1756098020151,1.45502525,113000.0,112990.0,0.00312]
[1756098020389,0.35235693,113000.0,112990.0,0.00519]
[1756098020597,1.45451232,113000.0,112990.0,0.00519]
[1756098022063,0.35235693,113000.0,112990.0,0.00519]
[1756098022272,1.45451232,113000.0,112990.0,0.00519]
[1756098023124,0.02476578,113000.0,112990.0,0.00519]
[1756098023330,1.30383626,113000.0,112990.0,0.00519]
[1756098023512,1.3037859,113000.0,112990.0,0.00519]
[1756098025342,0.024589,113000.0,112990.0,0.00519]
[1756098025751,1.12674439,113000.0,112990.0,0.00519]
[1756098026081,0.024589,113000.0,112990.0,0.00519]
[1756098026443,1.12674439,113000.0,112990.0,0.00519]
[1756098027132,1.12661694,113000.0,112990.0,0.00619]
[1756098028255,0.02446155,113000.0,112990.0,0.00619]
[1756098028463,1.12646379,113000.0,112990.0,0.00619]
[1756098030578,0.02405245,113000.0,112990.0,0.00619]
[1756098030756,1.12620784,113000.0,112990.0,0.00619]
[1756098033486,1.12595189,113000.0,112990.0,0.00619]
[1756098033888,1.30284128,113000.0,112990.0,0.00619]
[1756098037135,1.30284128,113000.0,112990.0,0.15671]
[1756098038154,1.30278064,113000.0,112990.0,0.15671]
[1756098038585,0.20062525,113000.0,112990.0,0.15671]
[1756098038811,1.30278064,113000.0,112990.0,0.15671]
[1756098039485,1.28014654,113000.0,112990.0,0.15671]
[1756098039730,1.27950512,113000.0,112990.0,0.00619]
[1756098039977,1.27950512,113000.0,112990.0,0.15671]
[1756098040457,1.27899219,113000.0,112990.0,0.15671]
[1756098040806,1.47899815,113010.0,112990.0,0.15671]
[1756098041014,1.10215539,113000.0,112990.0,0.15671]
[1756098041415,0.37677184,113010.0,112990.0,0.15665]
[1756098041630,1.10215539,113000.0,112990.0,0.15359]
[1756098041839,1.47892723,113010.0,112990.0,0.15359]
[1756098042105,1.10215539,113000.0,112990.0,0.15359]
[1756098042239,1.10215539,113000.0,112990.0,0.15665]
[1756098043366,1.10415539,113000.0,112990.0,0.15665]
[1756098045173,0.002,113000.0,112990.0,0.15665]
[1756098045600,1.10415539,113000.0,112990.0,0.15665]
[1756098046834,1.10389944,113000.0,112990.0,0.15665]
[1756098047012,0.00174405,113000.0,112990.0,0.15665]
[1756098047231,1.10389944,113000.0,112990.0,0.15665]
[1756098047410,0.00174405,113000.0,112990.0,0.15665]
[1756098047615,1.10389944,113000.0,112990.0,0.15665]
[1756098050249,1.28089059,113000.0,112990.0,0.15665]
[1756098050462,1.28037766,113000.0,112990.0,0.15665]
[1756098051509,1.10338651,113000.0,112990.0,0.15665]
[1756098051923,1.10313056,113000.0,112990.0,0.15665]
[1756098052668,0.00097517,113000.0,112990.0,0.24353475]
[1756098052873,0.00097517,113000.0,112990.0,1.52269695]
[1756098053155,0.00097517,113000.0,112990.0,1.54014597]
[1756098053563,0.00097517,113000.0,112990.0,1.56674997]
[1756098053772,1.48113133,113020.0,112990.0,1.56674997]
[1756098053973,1.33065133,113020.0,113000.0,1.19125252]
[1756098054238,1.33065133,113020.0,113010.0,0.15248]
[1756098054436,1.33065133,113020.0,113010.0,0.15554]
[1756098054596,1.33044678,113020.0,113010.0,0.00506]
[1756098054773,1.33044678,113020.0,113010.0,0.15554]
[1756098055204,1.33049485,113020.0,113010.0,0.15554]